[Event "Titled Tuesday Blitz August 1 Early 2023"]
[White "Karamsetty, Jeevan"]
[Black "Maksimovic, Bojan"]
[WhiteFideId "2025337"]
[BlackFideId "14408120"]
[WhiteElo "2573"]
[BlackElo "2880"]
[Result "1-0"]
[Round "2"]
[TimeControl "180+1"]
[Date "2023.08.01"]
[WhiteClock "0:00:17"]
[BlackClock "0:00:09"]
[Board "34"]

1. e4 {[%clk 0:03:00]}  c5 {[%clk 0:02:59]} 2. Nc3 {[%clk 0:03:00]}  Nc6 {[%clk 0:02:59]} 3. Bb5 {[%clk 0:03:01]}  Nd4 {[%clk 0:02:59]} 4. Bc4 {[%clk 0:03:01]}  a6 {[%clk 0:02:53]} 5. a4 {[%clk 0:03:01]}  g6 {[%clk 0:02:37]} 6. Nge2 {[%clk 0:02:57]}  Bg7 {[%clk 0:02:36]} 7. Nxd4 {[%clk 0:02:56]}  cxd4 {[%clk 0:02:36]} 8. Qf3 {[%clk 0:02:54]}  Nf6 {[%clk 0:02:11]} 9. e5 {[%clk 0:02:39]}  dxc3 {[%clk 0:02:08]} 10. dxc3 {[%clk 0:02:40]}  O-O {[%clk 0:02:03]} 11. exf6 {[%clk 0:02:39]}  Bxf6 {[%clk 0:02:01]} 12. Bh6 {[%clk 0:02:35]}  Re8 {[%clk 0:01:32]} 13. h4 {[%clk 0:02:13]}  e6 {[%clk 0:01:15]} 14. h5 {[%clk 0:02:10]}  d5 {[%clk 0:01:14]} 15. Bd3 {[%clk 0:02:04]}  e5 {[%clk 0:01:13]} 16. hxg6 {[%clk 0:01:47]}  hxg6 {[%clk 0:00:44]} 17. Qg3 {[%clk 0:01:42]}  e4 {[%clk 0:00:37]} 18. Be2 {[%clk 0:01:42]}  Be5 {[%clk 0:00:28]} 19. Bf4 {[%clk 0:01:40]}  Qf6 {[%clk 0:00:20]} 20. Bxe5 {[%clk 0:01:35]}  Rxe5 {[%clk 0:00:21]} 21. Qh2 {[%clk 0:01:16]}  Qg7 {[%clk 0:00:21]} 22. O-O-O {[%clk 0:01:13]}  Be6 {[%clk 0:00:21]} 23. g4 {[%clk 0:01:04]}  b5 {[%clk 0:00:21]} 24. a5 {[%clk 0:01:02]}  Rc8 {[%clk 0:00:20]} 25. Qf4 {[%clk 0:00:58]}  g5 {[%clk 0:00:20]} 26. Qe3 {[%clk 0:00:54]}  Qf6 {[%clk 0:00:19]} 27. Kb1 {[%clk 0:00:46]}  Bd7 {[%clk 0:00:13]} 28. Rh5 {[%clk 0:00:42]}  Kf8 {[%clk 0:00:13]} 29. Qa7 {[%clk 0:00:36]}  Ke7 {[%clk 0:00:13]} 30. Rdh1 {[%clk 0:00:34]}  Qd6 {[%clk 0:00:09]} 31. Qe3 {[%clk 0:00:29]}  Qf6 {[%clk 0:00:09]} 32. Rh6 {[%clk 0:00:24]}  Qf4 {[%clk 0:00:08]} 33. Qb6 {[%clk 0:00:23]}  Re6 {[%clk 0:00:05]} 34. Rxe6+ {[%clk 0:00:23]}  Bxe6 {[%clk 0:00:06]} 35. Qxa6 {[%clk 0:00:22]}  Qxf2 {[%clk 0:00:06]} 36. Qxb5 {[%clk 0:00:16]}  Qc5 {[%clk 0:00:04]} 37. Qxc5+ {[%clk 0:00:12]}  Rxc5 {[%clk 0:00:05]} 38. a6 {[%clk 0:00:12]}  Kd6 {[%clk 0:00:03]} 39. b4 {[%clk 0:00:12]}  Rc8 {[%clk 0:00:04]} 40. b5 {[%clk 0:00:12]}  Kc5 {[%clk 0:00:04]} 41. Kb2 {[%clk 0:00:12]}  Kb6 {[%clk 0:00:05]} 42. Ra1 {[%clk 0:00:11]}  Rc7 {[%clk 0:00:05]} 43. Rh1 {[%clk 0:00:08]}  Ra7 {[%clk 0:00:03]} 44. Ka3 {[%clk 0:00:07]}  Kc5 {[%clk 0:00:03]} 45. Ka4 {[%clk 0:00:06]}  Kb6 {[%clk 0:00:03]} 46. Kb4 {[%clk 0:00:05]}  Rc7 {[%clk 0:00:03]} 47. Rh5 {[%clk 0:00:05]}  f6 {[%clk 0:00:03]} 48. Rh6 {[%clk 0:00:05]}  Rf7 {[%clk 0:00:03]} 49. Rh8 {[%clk 0:00:05]}  Bd7 {[%clk 0:00:04]} 50. Rb8+ {[%clk 0:00:06]}  Kc7 {[%clk 0:00:04]} 51. Rd8 {[%clk 0:00:07]}  Kxd8 {[%clk 0:00:04]} 52. a7 {[%clk 0:00:07]}  Ke7 {[%clk 0:00:03]} 53. a8=Q {[%clk 0:00:08]}  f5 {[%clk 0:00:03]} 54. Qxd5 {[%clk 0:00:08]}  f4 {[%clk 0:00:03]} 55. Qxg5+ {[%clk 0:00:08]}  Kd6 {[%clk 0:00:02]} 56. Qc5+ {[%clk 0:00:08]}  Ke6 {[%clk 0:00:03]} 57. Bc4+ {[%clk 0:00:09]}  Kf6 {[%clk 0:00:04]} 58. Bxf7 {[%clk 0:00:10]}  Kxf7 {[%clk 0:00:04]} 59. Qd5+ {[%clk 0:00:10]}  Be6 {[%clk 0:00:05]} 60. Qxe4 {[%clk 0:00:11]}  Bxg4 {[%clk 0:00:04]} 61. Qxf4+ {[%clk 0:00:11]}  Kg7 {[%clk 0:00:05]} 62. Qxg4+ {[%clk 0:00:12]}  Kf6 {[%clk 0:00:06]} 63. Qd4+ {[%clk 0:00:12]}  Ke6 {[%clk 0:00:06]} 64. b6 {[%clk 0:00:13]}  Ke7 {[%clk 0:00:07]} 65. b7 {[%clk 0:00:14]}  Ke6 {[%clk 0:00:07]} 66. b8=Q {[%clk 0:00:14]}  Ke7 {[%clk 0:00:08]} 67. Qbe5+ {[%clk 0:00:15]}  Kf7 {[%clk 0:00:08]} 68. Qdf4+ {[%clk 0:00:15]}  Kg8 {[%clk 0:00:09]} 69. Qeg5+ {[%clk 0:00:16]}  Kh7 {[%clk 0:00:09]} 70. Qfh4# {[%clk 0:00:17]} 1-0


[Site "https://www.chess.com"]

[Event "Titled Tuesday Blitz August 1 Early 2023"]
[White "Siniauski, Artsiom"]
[Black "Kravtsiv, Martyn"]
[WhiteFideId "13512269"]
[BlackFideId "14113147"]
[WhiteElo "2570"]
[BlackElo "2870"]
[Result "0-1"]
[Round "2"]
[TimeControl "180+1"]
[Date "2023.08.01"]
[WhiteClock "0:00:00"]
[BlackClock "0:00:09"]
[Board "35"]

1. e4 {[%clk 0:02:59]}  e5 {[%clk 0:02:59]} 2. Nf3 {[%clk 0:02:58]}  Nc6 {[%clk 0:03:00]} 3. Bb5 {[%clk 0:02:57]}  a6 {[%clk 0:02:59]} 4. Ba4 {[%clk 0:02:58]}  Nf6 {[%clk 0:02:58]} 5. Bxc6 {[%clk 0:02:58]}  dxc6 {[%clk 0:02:56]} 6. d3 {[%clk 0:02:58]}  Nd7 {[%clk 0:02:54]} 7. b3 {[%clk 0:02:58]}  Bd6 {[%clk 0:02:53]} 8. Bb2 {[%clk 0:02:58]}  O-O {[%clk 0:02:53]} 9. Nbd2 {[%clk 0:02:58]}  f6 {[%clk 0:02:53]} 10. Nc4 {[%clk 0:02:54]}  Nc5 {[%clk 0:02:53]} 11. O-O {[%clk 0:02:47]}  Bg4 {[%clk 0:02:51]} 12. Ne3 {[%clk 0:02:42]}  Bh5 {[%clk 0:02:49]} 13. Nf5 {[%clk 0:02:33]}  Ne6 {[%clk 0:02:47]} 14. Ng3 {[%clk 0:02:31]}  Bf7 {[%clk 0:02:44]} 15. d4 {[%clk 0:02:30]}  exd4 {[%clk 0:02:34]} 16. Nxd4 {[%clk 0:02:29]}  Nxd4 {[%clk 0:02:16]} 17. Qxd4 {[%clk 0:02:19]}  Bf4 {[%clk 0:02:15]} 18. Rad1 {[%clk 0:02:12]}  Qxd4 {[%clk 0:02:14]} 19. Bxd4 {[%clk 0:02:13]}  Rfd8 {[%clk 0:02:09]} 20. Nf5 {[%clk 0:01:51]}  Be6 {[%clk 0:02:05]} 21. Be3 {[%clk 0:01:13]}  Be5 {[%clk 0:01:57]} 22. Ng3 {[%clk 0:01:05]}  b6 {[%clk 0:01:47]} 23. Ne2 {[%clk 0:01:05]}  c5 {[%clk 0:01:44]} 24. h3 {[%clk 0:01:05]}  a5 {[%clk 0:01:30]} 25. f4 {[%clk 0:01:05]}  Bd6 {[%clk 0:01:29]} 26. Kf2 {[%clk 0:01:04]}  a4 {[%clk 0:01:28]} 27. Kf3 {[%clk 0:01:01]}  Bf7 {[%clk 0:01:22]} 28. Nc3 {[%clk 0:00:56]}  axb3 {[%clk 0:01:19]} 29. axb3 {[%clk 0:00:57]}  c4 {[%clk 0:01:20]} 30. Nd5 {[%clk 0:00:42]}  cxb3 {[%clk 0:01:16]} 31. cxb3 {[%clk 0:00:42]}  h6 {[%clk 0:00:39]} 32. Rd3 {[%clk 0:00:39]}  Bf8 {[%clk 0:00:09]} 33. Rfd1 {[%clk 0:00:32]}  Bxd5 {[%clk 0:00:09]} 34. Rxd5 {[%clk 0:00:32]}  Rxd5 {[%clk 0:00:09]} 35. Rxd5 {[%clk 0:00:32]}  Ra3 {[%clk 0:00:10]} 36. Rd3 {[%clk 0:00:21]}  Bd6 {[%clk 0:00:11]} 37. Bd4 {[%clk 0:00:16]}  Kf7 {[%clk 0:00:10]} 38. e5 {[%clk 0:00:16]}  fxe5 {[%clk 0:00:10]} 39. fxe5 {[%clk 0:00:17]}  Be7 {[%clk 0:00:10]} 40. Ke4 {[%clk 0:00:16]}  Ke6 {[%clk 0:00:10]} 41. Be3 {[%clk 0:00:10]}  c5 {[%clk 0:00:09]} 42. g4 {[%clk 0:00:05]}  Ra2 {[%clk 0:00:09]} 43. Rd2 {[%clk 0:00:03]}  Ra1 {[%clk 0:00:08]} 44. Rf2 {[%clk 0:00:02]}  Rb1 {[%clk 0:00:08]} 45. Rf3 {[%clk 0:00:02]}  Rxb3 {[%clk 0:00:09]} 46. Rf5 {[%clk 0:00:02]}  Rb4+ {[%clk 0:00:09]} 47. Kf3 {[%clk 0:00:02]}  Rb3 {[%clk 0:00:09]} 48. Ke4 {[%clk 0:00:01]}  b5 {[%clk 0:00:10]} 49. Rf3 {[%clk 0:00:02]}  Rb4+ {[%clk 0:00:09]} 50. Kd3 {[%clk 0:00:02]}  c4+ {[%clk 0:00:10]} 51. Ke4 {[%clk 0:00:03]}  c3+ {[%clk 0:00:10]} 52. Kd3 {[%clk 0:00:04]}  Rc4 {[%clk 0:00:09]} 53. Kc2 {[%clk 0:00:04]}  b4 {[%clk 0:00:09]} 54. Bf4 {[%clk 0:00:04]}  Re4 {[%clk 0:00:09]} 55. Bg3 {[%clk 0:00:04]}  Re2+ {[%clk 0:00:09]} 56. Kb3 {[%clk 0:00:04]}  Rb2+ {[%clk 0:00:09]} 57. Kc4 {[%clk 0:00:05]}  c2 {[%clk 0:00:10]} 58. Bf4 {[%clk 0:00:00]}  Rb1 {[%clk 0:00:09]} 0-1


[Site "https://www.chess.com"]

[Event "Titled Tuesday Blitz August 1 Early 2023"]
[White "Timofeev, Artyom"]
[Black "Saya, Ethan"]
[WhiteFideId "4140419"]
[BlackFideId "26095181"]
[WhiteElo "2868"]
[BlackElo "2568"]
[Result "0-1"]
[Round "2"]
[TimeControl "180+1"]
[Date "2023.08.01"]
[WhiteClock "0:00:00"]
[BlackClock "0:00:13"]
[Board "36"]

1. c4 {[%clk 0:03:00]}  e6 {[%clk 0:02:59]} 2. Nc3 {[%clk 0:02:59]}  d5 {[%clk 0:02:57]} 3. d4 {[%clk 0:02:59]}  Nf6 {[%clk 0:02:57]} 4. Bg5 {[%clk 0:02:57]}  c6 {[%clk 0:02:52]} 5. e3 {[%clk 0:02:57]}  Nbd7 {[%clk 0:02:47]} 6. Nf3 {[%clk 0:02:54]}  Be7 {[%clk 0:02:41]} 7. Rc1 {[%clk 0:02:51]}  b6 {[%clk 0:02:27]} 8. cxd5 {[%clk 0:02:49]}  exd5 {[%clk 0:02:26]} 9. Bd3 {[%clk 0:02:43]}  Bb7 {[%clk 0:02:24]} 10. O-O {[%clk 0:02:43]}  O-O {[%clk 0:02:24]} 11. Ne2 {[%clk 0:02:32]}  Ne4 {[%clk 0:02:13]} 12. Bxe7 {[%clk 0:02:28]}  Qxe7 {[%clk 0:02:12]} 13. a3 {[%clk 0:02:28]}  c5 {[%clk 0:01:50]} 14. dxc5 {[%clk 0:02:16]}  bxc5 {[%clk 0:01:48]} 15. Nf4 {[%clk 0:02:16]}  Rac8 {[%clk 0:01:37]} 16. Re1 {[%clk 0:02:08]}  Rfd8 {[%clk 0:01:36]} 17. Qe2 {[%clk 0:02:06]}  Ne5 {[%clk 0:01:31]} 18. Nxe5 {[%clk 0:01:52]}  Qxe5 {[%clk 0:01:31]} 19. h3 {[%clk 0:01:40]}  d4 {[%clk 0:01:22]} 20. Bc4 {[%clk 0:00:46]}  Nd6 {[%clk 0:01:16]} 21. Ba2 {[%clk 0:00:39]}  Nf5 {[%clk 0:00:54]} 22. Bb1 {[%clk 0:00:30]}  Nh4 {[%clk 0:00:48]} 23. Qg4 {[%clk 0:00:28]}  Ng6 {[%clk 0:00:46]} 24. Bxg6 {[%clk 0:00:22]}  hxg6 {[%clk 0:00:44]} 25. exd4 {[%clk 0:00:19]}  Qxd4 {[%clk 0:00:42]} 26. Re7 {[%clk 0:00:19]}  Be4 {[%clk 0:00:30]} 27. Re1 {[%clk 0:00:18]}  Bf5 {[%clk 0:00:30]} 28. Qg3 {[%clk 0:00:18]}  Qxb2 {[%clk 0:00:26]} 29. h4 {[%clk 0:00:18]}  Qf6 {[%clk 0:00:16]} 30. h5 {[%clk 0:00:17]}  g5 {[%clk 0:00:17]} 31. Nh3 {[%clk 0:00:12]}  Bxh3 {[%clk 0:00:17]} 32. Qxh3 {[%clk 0:00:12]}  c4 {[%clk 0:00:16]} 33. Rxa7 {[%clk 0:00:08]}  c3 {[%clk 0:00:16]} 34. Qe3 {[%clk 0:00:07]}  c2 {[%clk 0:00:15]} 35. Re7 {[%clk 0:00:05]}  Qf4 {[%clk 0:00:13]} 36. Qxf4 {[%clk 0:00:02]}  gxf4 {[%clk 0:00:14]} 37. Rc1 {[%clk 0:00:01]}  Rd1+ {[%clk 0:00:14]} 38. Re1 {[%clk 0:00:01]}  Rxe1+ {[%clk 0:00:12]} 39. Rxe1 {[%clk 0:00:00]}  c1=Q {[%clk 0:00:13]} 0-1


[Site "https://www.chess.com"]

[Event "Titled Tuesday Blitz August 1 Early 2023"]
[White "The_Sherman_Variation"]
[Black "Khubukshanov, Erdem"]
[BlackFideId "54114527"]
[WhiteElo "2567"]
[BlackElo "2862"]
[Result "0-1"]
[Round "2"]
[TimeControl "180+1"]
[Date "2023.08.01"]
[WhiteClock "0:00:24"]
[BlackClock "0:01:13"]
[Board "37"]

1. b4 {[%clk 0:02:59]}  e5 {[%clk 0:02:59]} 2. Bb2 {[%clk 0:02:58]}  Bxb4 {[%clk 0:02:59]} 3. Bxe5 {[%clk 0:02:57]}  Nf6 {[%clk 0:03:00]} 4. Nf3 {[%clk 0:02:55]}  d5 {[%clk 0:03:00]} 5. Bb2 {[%clk 0:02:54]}  O-O {[%clk 0:02:59]} 6. g3 {[%clk 0:02:54]}  Re8 {[%clk 0:02:59]} 7. Bg2 {[%clk 0:02:54]}  c5 {[%clk 0:02:58]} 8. O-O {[%clk 0:02:38]}  Nc6 {[%clk 0:02:58]} 9. e3 {[%clk 0:02:38]}  Bf5 {[%clk 0:02:55]} 10. d3 {[%clk 0:02:37]}  Ba5 {[%clk 0:02:49]} 11. Nbd2 {[%clk 0:02:34]}  Bc7 {[%clk 0:02:45]} 12. Re1 {[%clk 0:02:30]}  h6 {[%clk 0:02:40]} 13. Qe2 {[%clk 0:02:25]}  Bh7 {[%clk 0:02:34]} 14. a3 {[%clk 0:02:22]}  Qe7 {[%clk 0:02:24]} 15. c4 {[%clk 0:02:13]}  Rad8 {[%clk 0:02:18]} 16. cxd5 {[%clk 0:02:05]}  Nxd5 {[%clk 0:02:19]} 17. e4 {[%clk 0:02:04]}  Nb6 {[%clk 0:02:19]} 18. Rac1 {[%clk 0:01:57]}  Qd7 {[%clk 0:02:04]} 19. Bf1 {[%clk 0:01:46]}  Na4 {[%clk 0:02:03]} 20. Ba1 {[%clk 0:01:45]}  a6 {[%clk 0:01:51]} 21. Nb3 {[%clk 0:01:44]}  Bb6 {[%clk 0:01:41]} 22. Rc4 {[%clk 0:01:36]}  Na5 {[%clk 0:01:36]} 23. Nxa5 {[%clk 0:01:24]}  Bxa5 {[%clk 0:01:37]} 24. Rec1 {[%clk 0:01:20]}  b5 {[%clk 0:01:37]} 25. Rxa4 {[%clk 0:01:18]}  bxa4 {[%clk 0:01:37]} 26. Qb2 {[%clk 0:01:17]}  f6 {[%clk 0:01:33]} 27. Rxc5 {[%clk 0:01:13]}  Bc7 {[%clk 0:01:29]} 28. Qc2 {[%clk 0:00:58]}  Bd6 {[%clk 0:01:26]} 29. Rc6 {[%clk 0:00:58]}  Rc8 {[%clk 0:01:19]} 30. Nd4 {[%clk 0:00:38]}  Rxc6 {[%clk 0:01:15]} 31. Qxc6 {[%clk 0:00:27]}  Qxc6 {[%clk 0:01:14]} 32. Nxc6 {[%clk 0:00:28]}  Bxa3 {[%clk 0:01:14]} 33. d4 {[%clk 0:00:24]}  Bxe4 {[%clk 0:01:13]} 0-1


[Site "https://www.chess.com"]

[Event "Titled Tuesday Blitz August 1 Early 2023"]
[White "Rasulov, Vugar"]
[Black "Kuzmin, Roman"]
[WhiteFideId "13402390"]
[BlackFideId "44134932"]
[WhiteElo "2857"]
[BlackElo "2563"]
[Result "1-0"]
[Round "2"]
[TimeControl "180+1"]
[Date "2023.08.01"]
[WhiteClock "0:01:13"]
[BlackClock "0:00:59"]
[Board "39"]

1. d4 {[%clk 0:03:00]}  Nf6 {[%clk 0:02:59]} 2. c4 {[%clk 0:03:01]}  e6 {[%clk 0:02:59]} 3. Nc3 {[%clk 0:03:01]}  d5 {[%clk 0:03:00]} 4. Nf3 {[%clk 0:03:01]}  Nbd7 {[%clk 0:03:00]} 5. Bf4 {[%clk 0:03:00]}  c6 {[%clk 0:03:00]} 6. e3 {[%clk 0:03:00]}  Be7 {[%clk 0:03:00]} 7. Rc1 {[%clk 0:02:59]}  O-O {[%clk 0:03:00]} 8. Bd3 {[%clk 0:02:57]}  dxc4 {[%clk 0:02:58]} 9. Bxc4 {[%clk 0:02:58]}  b5 {[%clk 0:02:59]} 10. Bd3 {[%clk 0:02:57]}  a6 {[%clk 0:02:52]} 11. O-O {[%clk 0:02:58]}  c5 {[%clk 0:02:52]} 12. Ne4 {[%clk 0:02:49]}  cxd4 {[%clk 0:02:44]} 13. Nxd4 {[%clk 0:02:47]}  Bb7 {[%clk 0:02:39]} 14. Nc6 {[%clk 0:02:37]}  Bxc6 {[%clk 0:02:38]} 15. Rxc6 {[%clk 0:02:38]}  Nd5 {[%clk 0:02:36]} 16. Bb1 {[%clk 0:02:23]}  Nxf4 {[%clk 0:02:28]} 17. exf4 {[%clk 0:02:24]}  Nf6 {[%clk 0:02:29]} 18. Qf3 {[%clk 0:02:19]}  Qd5 {[%clk 0:02:22]} 19. Rd1 {[%clk 0:02:11]}  Nxe4 {[%clk 0:01:55]} 20. Rxd5 {[%clk 0:02:06]}  exd5 {[%clk 0:01:56]} 21. Bxe4 {[%clk 0:02:00]}  dxe4 {[%clk 0:01:57]} 22. Qxe4 {[%clk 0:02:01]}  Bf6 {[%clk 0:01:58]} 23. g4 {[%clk 0:01:54]}  Rfe8 {[%clk 0:01:54]} 24. Qc2 {[%clk 0:01:49]}  Re1+ {[%clk 0:01:55]} 25. Kg2 {[%clk 0:01:49]}  Ree8 {[%clk 0:01:50]} 26. g5 {[%clk 0:01:48]}  Bd4 {[%clk 0:01:50]} 27. b3 {[%clk 0:01:46]}  g6 {[%clk 0:01:47]} 28. Rd6 {[%clk 0:01:45]}  Ba7 {[%clk 0:01:39]} 29. Rd7 {[%clk 0:01:45]}  Bb6 {[%clk 0:01:38]} 30. Qc6 {[%clk 0:01:42]}  Rab8 {[%clk 0:01:32]} 31. Qd5 {[%clk 0:01:42]}  Re6 {[%clk 0:01:32]} 32. f5 {[%clk 0:01:37]}  gxf5 {[%clk 0:01:33]} 33. Qxf5 {[%clk 0:01:37]}  Rf8 {[%clk 0:01:33]} 34. Rxf7 {[%clk 0:01:32]}  Rxf7 {[%clk 0:01:31]} 35. Qxe6 {[%clk 0:01:33]}  Bxf2 {[%clk 0:01:32]} 36. Qxa6 {[%clk 0:01:29]}  b4 {[%clk 0:01:22]} 37. Qc4 {[%clk 0:01:27]}  Be1 {[%clk 0:01:21]} 38. h4 {[%clk 0:01:21]}  Kf8 {[%clk 0:01:10]} 39. h5 {[%clk 0:01:16]}  Rf2+ {[%clk 0:01:08]} 40. Kh3 {[%clk 0:01:16]}  Rf3+ {[%clk 0:01:06]} 41. Kg4 {[%clk 0:01:16]}  Rg3+ {[%clk 0:01:06]} 42. Kf5 {[%clk 0:01:15]}  Rf3+ {[%clk 0:01:06]} 43. Ke6 {[%clk 0:01:14]}  Re3+ {[%clk 0:01:05]} 44. Kd7 {[%clk 0:01:14]}  Re7+ {[%clk 0:01:04]} 45. Kc6 {[%clk 0:01:13]}  Bg3 {[%clk 0:00:59]} 46. Qxb4 {[%clk 0:01:13]} 1-0


[Site "https://www.chess.com"]

[Event "Titled Tuesday Blitz August 1 Early 2023"]
[White "Ter-Sahakyan, Samvel"]
[Black "Sadykov, Ramil"]
[WhiteFideId "13302531"]
[BlackFideId "24113590"]
[WhiteElo "2848"]
[BlackElo "2561"]
[Result "1/2-1/2"]
[Round "2"]
[TimeControl "180+1"]
[Date "2023.08.01"]
[WhiteClock "0:00:14"]
[BlackClock "0:00:15"]
[Board "41"]

1. e4 {[%clk 0:03:00]}  c5 {[%clk 0:02:59]} 2. Nf3 {[%clk 0:02:58]}  e6 {[%clk 0:02:59]} 3. b3 {[%clk 0:02:52]}  Nc6 {[%clk 0:02:51]} 4. Bb2 {[%clk 0:02:48]}  d6 {[%clk 0:02:45]} 5. Bb5 {[%clk 0:02:44]}  Ne7 {[%clk 0:02:36]} 6. O-O {[%clk 0:02:38]}  a6 {[%clk 0:02:36]} 7. Bxc6+ {[%clk 0:02:39]}  Nxc6 {[%clk 0:02:36]} 8. d4 {[%clk 0:02:39]}  cxd4 {[%clk 0:02:33]} 9. Nxd4 {[%clk 0:02:40]}  Nxd4 {[%clk 0:02:18]} 10. Qxd4 {[%clk 0:02:38]}  e5 {[%clk 0:02:18]} 11. Qd3 {[%clk 0:02:33]}  Be7 {[%clk 0:02:12]} 12. Nc3 {[%clk 0:02:31]}  O-O {[%clk 0:01:59]} 13. Nd5 {[%clk 0:02:31]}  Be6 {[%clk 0:01:43]} 14. c4 {[%clk 0:02:31]}  Bg5 {[%clk 0:01:31]} 15. a4 {[%clk 0:02:07]}  f5 {[%clk 0:01:27]} 16. f4 {[%clk 0:02:00]}  fxe4 {[%clk 0:01:14]} 17. Qxe4 {[%clk 0:01:58]}  Bf5 {[%clk 0:01:13]} 18. Qe3 {[%clk 0:01:48]}  Bh6 {[%clk 0:00:59]} 19. Qg3 {[%clk 0:01:45]}  exf4 {[%clk 0:00:55]} 20. Nxf4 {[%clk 0:01:43]}  Qg5 {[%clk 0:00:48]} 21. Rae1 {[%clk 0:01:13]}  Qxg3 {[%clk 0:00:41]} 22. hxg3 {[%clk 0:01:14]}  Rae8 {[%clk 0:00:37]} 23. a5 {[%clk 0:01:02]}  Bc2 {[%clk 0:00:30]} 24. Rxe8 {[%clk 0:00:48]}  Rxe8 {[%clk 0:00:30]} 25. Rf3 {[%clk 0:00:48]}  Bxf4 {[%clk 0:00:26]} 26. gxf4 {[%clk 0:00:46]}  Re2 {[%clk 0:00:25]} 27. Ba3 {[%clk 0:00:28]}  Be4 {[%clk 0:00:20]} 28. Rg3 {[%clk 0:00:28]}  d5 {[%clk 0:00:19]} 29. cxd5 {[%clk 0:00:28]}  Bxd5 {[%clk 0:00:19]} 30. Bd6 {[%clk 0:00:28]}  Kf7 {[%clk 0:00:18]} 31. Be5 {[%clk 0:00:28]}  g6 {[%clk 0:00:18]} 32. b4 {[%clk 0:00:20]}  Bc6 {[%clk 0:00:18]} 33. Kf1 {[%clk 0:00:20]}  Rc2 {[%clk 0:00:17]} 34. Kg1 {[%clk 0:00:18]}  Ke6 {[%clk 0:00:16]} 35. Kh2 {[%clk 0:00:18]}  Kf5 {[%clk 0:00:15]} 36. Kh3 {[%clk 0:00:14]}  h6 {[%clk 0:00:11]} 37. Bb8 {[%clk 0:00:09]}  g5 {[%clk 0:00:10]} 38. fxg5 {[%clk 0:00:09]}  hxg5 {[%clk 0:00:11]} 39. Kh2 {[%clk 0:00:08]}  g4 {[%clk 0:00:09]} 40. Bd6 {[%clk 0:00:08]}  Be4 {[%clk 0:00:08]} 41. Bc5 {[%clk 0:00:09]}  Rd2 {[%clk 0:00:06]} 42. Kg1 {[%clk 0:00:09]}  Rd3 {[%clk 0:00:06]} 43. Rxd3 {[%clk 0:00:06]}  Bxd3 {[%clk 0:00:07]} 44. Kf2 {[%clk 0:00:06]}  Bb5 {[%clk 0:00:07]} 45. g3 {[%clk 0:00:06]}  Bc6 {[%clk 0:00:08]} 46. Ke3 {[%clk 0:00:06]}  Bb5 {[%clk 0:00:08]} 47. Kd4 {[%clk 0:00:07]}  Bc6 {[%clk 0:00:09]} 48. Bd6 {[%clk 0:00:07]}  Bb5 {[%clk 0:00:09]} 49. Bf4 {[%clk 0:00:08]}  Bc6 {[%clk 0:00:08]} 50. Kc5 {[%clk 0:00:08]}  Bf3 {[%clk 0:00:08]} 51. Kb6 {[%clk 0:00:08]}  Be4 {[%clk 0:00:08]} 52. Kc7 {[%clk 0:00:07]}  Bf3 {[%clk 0:00:08]} 53. Kd6 {[%clk 0:00:07]}  Be4 {[%clk 0:00:09]} 54. Kc5 {[%clk 0:00:08]}  Bf3 {[%clk 0:00:09]} 55. b5 {[%clk 0:00:08]}  axb5 {[%clk 0:00:09]} 56. Kxb5 {[%clk 0:00:08]}  Bg2 {[%clk 0:00:10]} 57. Kb6 {[%clk 0:00:09]}  Bf3 {[%clk 0:00:10]} 58. a6 {[%clk 0:00:10]}  bxa6 {[%clk 0:00:11]} 59. Kxa6 {[%clk 0:00:10]}  Be4 {[%clk 0:00:11]} 60. Kb6 {[%clk 0:00:11]}  Bf3 {[%clk 0:00:12]} 61. Kc5 {[%clk 0:00:11]}  Bg2 {[%clk 0:00:13]} 62. Kb6 {[%clk 0:00:12]}  Bh3 {[%clk 0:00:13]} 63. Kc5 {[%clk 0:00:13]}  Bg2 {[%clk 0:00:14]} 64. Kb6 {[%clk 0:00:13]}  Bh3 {[%clk 0:00:15]} 65. Kc5 {[%clk 0:00:14]}  Bg2 {[%clk 0:00:15]} 1/2-1/2


[Site "https://www.chess.com"]